[Event "*** Titled Tuesday Blitz"]
[Site "Chess.com"]
[Date "2020.04.14"]
[Round "1"]
[White "icychess54"]
[Black "SONOFHOLYGOD"]
[Result "0-1"]
[WhiteElo "2218"]
[BlackElo "2593"]
[TimeControl "180+1"]
[EndTime "10:08:01 PDT"]
[Termination "SONOFHOLYGOD won by resignation"]

1. c4 {[%clk 0:02:57]} 1... Nf6 {[%clk 0:02:55.9]} 2. Nf3 {[%clk 0:02:56.8]}
2... c5 {[%clk 0:02:52.7]} 3. Nc3 {[%clk 0:02:56.1]} 3... Nc6 {[%clk 0:02:48.8]}
4. d4 {[%clk 0:02:55.9]} 4... cxd4 {[%clk 0:02:48.1]} 5. Nxd4 {[%clk 0:02:56.8]}
5... g6 {[%clk 0:02:46.6]} 6. e3 {[%clk 0:02:57]} 6... Bg7 {[%clk 0:02:46.4]} 7.
Be2 {[%clk 0:02:57.4]} 7... O-O {[%clk 0:02:42.2]} 8. O-O {[%clk 0:02:57.8]}
8... d6 {[%clk 0:02:36]} 9. b3 {[%clk 0:02:57.5]} 9... Nxd4 {[%clk 0:02:32.4]}
10. exd4 {[%clk 0:02:57.2]} 10... d5 {[%clk 0:02:32.9]} 11. c5 {[%clk
0:02:47.6]} 11... Qa5 {[%clk 0:02:07.9]} 12. Bd2 {[%clk 0:02:39.1]} 12... Qc7
{[%clk 0:01:55.1]} 13. b4 {[%clk 0:02:25.6]} 13... a6 {[%clk 0:01:38.7]} 14. a4
{[%clk 0:02:19.7]} 14... e5 {[%clk 0:01:37.7]} 15. Bg5 {[%clk 0:02:11.3]} 15...
Be6 {[%clk 0:01:29.4]} 16. Rc1 {[%clk 0:01:07.7]} 16... exd4 {[%clk 0:01:25.8]}
17. Qxd4 {[%clk 0:00:44.3]} 17... Ne4 {[%clk 0:01:23.5]} 18. Nxd5 {[%clk
0:00:40]} 18... Bxd4 {[%clk 0:01:00.3]} 19. Nxc7 {[%clk 0:00:40]} 19... Nxg5
{[%clk 0:00:56.8]} 20. Nxa8 {[%clk 0:00:40.4]} 20... Rxa8 {[%clk 0:00:55.3]} 21.
h4 {[%clk 0:00:36]} 21... Ne4 {[%clk 0:00:52.8]} 22. Bf3 {[%clk 0:00:29.4]}
22... f5 {[%clk 0:00:20.7]} 23. Rfe1 {[%clk 0:00:28.5]} 23... Bxf2+ {[%clk
0:00:19.7]} 24. Kf1 {[%clk 0:00:20.3]} 24... Bxe1 {[%clk 0:00:20.2]} 25. Rxe1
{[%clk 0:00:20.5]} 25... Kf7 {[%clk 0:00:19.7]} 26. Bxe4 {[%clk 0:00:18.8]}
26... fxe4 {[%clk 0:00:20.6]} 27. Rxe4 {[%clk 0:00:19]} 27... Rd8 {[%clk
0:00:20.8]} 28. b5 {[%clk 0:00:18.2]} 28... axb5 {[%clk 0:00:20.7]} 29. axb5
{[%clk 0:00:19.1]} 29... Rd5 {[%clk 0:00:20.8]} 30. c6 {[%clk 0:00:18.2]} 30...
bxc6 {[%clk 0:00:20.6]} 31. bxc6 {[%clk 0:00:19.1]} 31... Rc5 {[%clk 0:00:20.9]}
32. Rb4 {[%clk 0:00:18.4]} 32... Rxc6 {[%clk 0:00:14.5]} 33. Rb7+ {[%clk
0:00:17.6]} 33... Kg8 {[%clk 0:00:14.8]} 34. Kf2 {[%clk 0:00:14.6]} 34... Bf7
{[%clk 0:00:14.6]} 35. Kg3 {[%clk 0:00:14]} 35... Rc2 {[%clk 0:00:14.9]} 36. Ra7
{[%clk 0:00:11.9]} 36... Rc3+ {[%clk 0:00:14.8]} 37. Kf4 {[%clk 0:00:11.4]}
37... Kg7 {[%clk 0:00:15.1]} 38. g4 {[%clk 0:00:10.3]} 38... Rc4+ {[%clk
0:00:15.5]} 39. Kg3 {[%clk 0:00:10.1]} 39... Rb4 {[%clk 0:00:14.4]} 40. h5
{[%clk 0:00:10.3]} 40... g5 {[%clk 0:00:14.1]} 41. h6+ {[%clk 0:00:09.4]} 41...
Kf6 {[%clk 0:00:14.1]} 42. Ra6+ {[%clk 0:00:09.2]} 42... Be6 {[%clk 0:00:14.3]}
43. Ra7 {[%clk 0:00:10.1]} 43... Rxg4+ {[%clk 0:00:14.5]} 44. Kf3 {[%clk
0:00:09.2]} 44... Rf4+ {[%clk 0:00:14.7]} 45. Kg3 {[%clk 0:00:09]} 45... Kg6
{[%clk 0:00:15.1]} 46. Ra6 {[%clk 0:00:08.6]} 46... Re4 {[%clk 0:00:15.2]} 47.
Ra5 {[%clk 0:00:09.4]} 47... Kxh6 {[%clk 0:00:15.2]} 48. Ra8 {[%clk 0:00:10.1]}
48... Kg6 {[%clk 0:00:15.2]} 49. Ra7 {[%clk 0:00:11]} 49... h5 {[%clk 0:00:15]}
50. Kg2 {[%clk 0:00:11.9]} 50... Re3 {[%clk 0:00:15.2]} 51. Ra8 {[%clk
0:00:12.8]} 51... Kf5 {[%clk 0:00:15.5]} 52. Ra5+ {[%clk 0:00:12.9]} 52... Re5
{[%clk 0:00:15.7]} 53. Ra4 {[%clk 0:00:12.6]} 53... Bd5+ {[%clk 0:00:16.6]} 54.
Kg3 {[%clk 0:00:12.2]} 54... Re4 {[%clk 0:00:16.9]} 55. Ra5 {[%clk 0:00:11.2]}
55... Ke5 {[%clk 0:00:17.2]} 56. Ra1 {[%clk 0:00:11.5]} 56... Re3+ {[%clk
0:00:17.6]} 57. Kf2 {[%clk 0:00:11.1]} 57... Rc3 {[%clk 0:00:16.9]} 58. Ra7
{[%clk 0:00:10.1]} 58... Kf4 {[%clk 0:00:16]} 59. Rc7 {[%clk 0:00:11]} 59...
Rxc7 {[%clk 0:00:15]} 0-1

[Event "*** Titled Tuesday Blitz"]
[Site "Chess.com"]
[Date "2020.04.14"]
[Round "1"]
[White "Donseng"]
[Black "BronceYSueno"]
[Result "1-0"]
[WhiteElo "2524"]
[BlackElo "1971"]
[TimeControl "180+1"]
[EndTime "10:08:01 PDT"]
[Termination "Donseng won by resignation"]

1. e4 {[%clk 0:02:57.2]} 1... c5 {[%clk 0:02:59.1]} 2. Nf3 {[%clk 0:02:56.1]}
2... e6 {[%clk 0:02:59]} 3. c3 {[%clk 0:02:55.6]} 3... d5 {[%clk 0:02:54.5]} 4.
exd5 {[%clk 0:02:55.6]} 4... exd5 {[%clk 0:02:55.4]} 5. d4 {[%clk 0:02:56.4]}
5... Nf6 {[%clk 0:02:54.2]} 6. Bb5+ {[%clk 0:02:52.9]} 6... Bd7 {[%clk
0:02:51.4]} 7. Qe2+ {[%clk 0:02:50.3]} 7... Be7 {[%clk 0:02:27.3]} 8. dxc5
{[%clk 0:02:47.1]} 8... O-O {[%clk 0:02:24.7]} 9. Bxd7 {[%clk 0:02:41.9]} 9...
Nbxd7 {[%clk 0:02:22.1]} 10. O-O {[%clk 0:02:41.7]} 10... Bxc5 {[%clk
0:02:17.6]} 11. Bg5 {[%clk 0:02:39.5]} 11... Re8 {[%clk 0:02:14.9]} 12. Qc2
{[%clk 0:02:35.6]} 12... Qb6 {[%clk 0:02:03.4]} 13. Bxf6 {[%clk 0:02:15.1]}
13... Nxf6 {[%clk 0:02:01.9]} 14. b4 {[%clk 0:02:13.2]} 14... Bd6 {[%clk
0:01:43.5]} 15. Nbd2 {[%clk 0:02:09.7]} 15... Rac8 {[%clk 0:01:42.9]} 16. Qd3
{[%clk 0:01:53.1]} 16... Ne4 {[%clk 0:01:29.1]} 17. Rac1 {[%clk 0:01:39.7]}
17... Bf4 {[%clk 0:01:20.3]} 18. g3 {[%clk 0:01:32.5]} 18... Bh6 {[%clk
0:01:04.2]} 19. Rc2 {[%clk 0:01:29.6]} 19... Nxd2 {[%clk 0:00:57.7]} 20. Nxd2
{[%clk 0:01:28]} 20... d4 {[%clk 0:00:56.4]} 21. Nc4 {[%clk 0:01:13.5]} 21...
Qa6 {[%clk 0:00:47.8]} 22. cxd4 {[%clk 0:01:12.8]} 22... Rc7 {[%clk 0:00:37.9]}
23. Qb3 {[%clk 0:00:59.5]} 23... Rec8 {[%clk 0:00:36.4]} 24. Ne3 {[%clk
0:00:47.8]} 24... Bxe3 {[%clk 0:00:32.5]} 25. Rxc7 {[%clk 0:00:45.1]} 25...
Bxf2+ {[%clk 0:00:32.5]} 26. Rxf2 {[%clk 0:00:43.2]} 26... Rxc7 {[%clk
0:00:32.8]} 27. Qd5 {[%clk 0:00:33.9]} 27... Rc1+ {[%clk 0:00:27.9]} 28. Kg2
{[%clk 0:00:33.2]} 28... Qc6 {[%clk 0:00:28.6]} 29. Qxc6 {[%clk 0:00:31.4]}
29... Rxc6 {[%clk 0:00:29.5]} 30. d5 {[%clk 0:00:12.9]} 30... Rd6 {[%clk
0:00:28.1]} 31. Rd2 {[%clk 0:00:12.3]} 31... f5 {[%clk 0:00:28.6]} 32. Kf3
{[%clk 0:00:12.3]} 32... Kf7 {[%clk 0:00:28]} 33. Ke3 {[%clk 0:00:12.4]} 33...
Ke7 {[%clk 0:00:26.6]} 34. Kd4 {[%clk 0:00:12.6]} 34... Rb6 {[%clk 0:00:27.2]}
35. a3 {[%clk 0:00:09.6]} 35... Kd6 {[%clk 0:00:25.5]} 36. Re2 {[%clk
0:00:09.6]} 36... a5 {[%clk 0:00:23.2]} 37. Re6+ {[%clk 0:00:09.1]} 37... Kc7
{[%clk 0:00:23]} 38. Rxb6 {[%clk 0:00:09.1]} 38... Kxb6 {[%clk 0:00:23.9]} 39.
bxa5+ {[%clk 0:00:09.5]} 39... Kc7 {[%clk 0:00:23.4]} 40. Ke5 {[%clk 0:00:08.7]}
40... g6 {[%clk 0:00:22.7]} 41. h4 {[%clk 0:00:08.8]} 41... Kd7 {[%clk
0:00:22.6]} 42. d6 {[%clk 0:00:07.8]} 42... h6 {[%clk 0:00:16]} 43. a4 {[%clk
0:00:07.4]} 43... g5 {[%clk 0:00:15.9]} 44. hxg5 {[%clk 0:00:07.2]} 44... hxg5
{[%clk 0:00:16.8]} 45. Kxf5 {[%clk 0:00:07.6]} 45... Kxd6 {[%clk 0:00:17.7]} 46.
Kxg5 {[%clk 0:00:08.1]} 46... Ke5 {[%clk 0:00:18.2]} 47. Kh6 {[%clk 0:00:07.9]}
47... Kf6 {[%clk 0:00:18.6]} 48. g4 {[%clk 0:00:07.7]} 48... Ke5 {[%clk
0:00:19]} 49. g5 {[%clk 0:00:07.8]} 49... Kd5 {[%clk 0:00:19.9]} 50. g6 {[%clk
0:00:08.7]} 50... Kc5 {[%clk 0:00:20.8]} 51. g7 {[%clk 0:00:09.3]} 51... Kb4
{[%clk 0:00:21.7]} 52. g8=Q {[%clk 0:00:10.2]} 52... Kxa5 {[%clk 0:00:22.6]} 53.
Qd5+ {[%clk 0:00:10]} 53... Ka6 {[%clk 0:00:22.2]} 54. Qb5+ {[%clk 0:00:09.7]}
54... Ka7 {[%clk 0:00:22.7]} 55. a5 {[%clk 0:00:10.1]} 55... Kb8 {[%clk
0:00:21.8]} 56. a6 {[%clk 0:00:09.3]} 1-0

[Event "*** Titled Tuesday Blitz"]
[Site "Chess.com"]
[Date "2020.04.14"]
[Round "1"]
[White "Anton_Zhukov04"]
[Black "jposthuma"]
[Result "0-1"]
[WhiteElo "2242"]
[BlackElo "2607"]
[TimeControl "180+1"]
[EndTime "10:08:04 PDT"]
[Termination "jposthuma won by resignation"]

1. d4 {[%clk 0:03:00.9]} 1... Nf6 {[%clk 0:02:59.7]} 2. c4 {[%clk 0:03:00.8]}
2... c5 {[%clk 0:02:59.7]} 3. d5 {[%clk 0:03:00.8]} 3... b5 {[%clk 0:02:54.7]}
4. Qc2 {[%clk 0:03:00.8]} 4... e6 {[%clk 0:02:51.4]} 5. e4 {[%clk 0:02:56.7]}
5... bxc4 {[%clk 0:02:50.2]} 6. Nc3 {[%clk 0:02:55.2]} 6... exd5 {[%clk
0:02:47.1]} 7. e5 {[%clk 0:02:55.2]} 7... Qe7 {[%clk 0:02:46.4]} 8. Qe2 {[%clk
0:02:54.5]} 8... d4 {[%clk 0:02:07.3]} 9. exf6 {[%clk 0:02:46.6]} 9... Qxe2+
{[%clk 0:02:05.3]} 10. Ncxe2 {[%clk 0:02:47.5]} 10... Nc6 {[%clk 0:01:48.5]} 11.
Bd2 {[%clk 0:02:37.6]} 11... d5 {[%clk 0:01:42.9]} 12. Nf4 {[%clk 0:02:29.9]}
12... Be6 {[%clk 0:01:35.8]} 13. Nf3 {[%clk 0:02:26.3]} 13... gxf6 {[%clk
0:01:30.4]} 14. Be2 {[%clk 0:02:18.9]} 14... Bd6 {[%clk 0:01:18.2]} 15. O-O
{[%clk 0:02:16]} 15... Rb8 {[%clk 0:01:00.8]} 16. Rab1 {[%clk 0:01:39.9]} 16...
Ne5 {[%clk 0:00:42.9]} 17. Rfe1 {[%clk 0:01:35.5]} 17... Kd7 {[%clk 0:00:40]}
18. Nh5 {[%clk 0:01:20.9]} 18... Ke7 {[%clk 0:00:34.2]} 19. Nxe5 {[%clk
0:01:15.2]} 19... fxe5 {[%clk 0:00:25.6]} 20. Bg5+ {[%clk 0:01:15.2]} 20... Kd7
{[%clk 0:00:26]} 21. Nf6+ {[%clk 0:01:14.1]} 21... Kc6 {[%clk 0:00:24.4]} 22.
Bd1 {[%clk 0:01:10]} 22... Rb4 {[%clk 0:00:15.4]} 23. a3 {[%clk 0:01:08.7]}
23... Rb7 {[%clk 0:00:14.7]} 24. Ba4+ {[%clk 0:01:08.6]} 24... Kc7 {[%clk
0:00:15.1]} 25. Bh4 {[%clk 0:01:04.7]} 25... Rhb8 {[%clk 0:00:14.3]} 26. Re2
{[%clk 0:00:58.7]} 26... c3 {[%clk 0:00:11.9]} 27. Ne8+ {[%clk 0:00:45.8]} 27...
Rxe8 {[%clk 0:00:07.7]} 28. Bxe8 {[%clk 0:00:45.3]} 28... d3 {[%clk 0:00:07.7]}
29. Ree1 {[%clk 0:00:20.2]} 29... c2 {[%clk 0:00:05.8]} 30. Ra1 {[%clk 0:00:19]}
30... d2 {[%clk 0:00:05.7]} 31. Rf1 {[%clk 0:00:18.9]} 31... Rxb2 {[%clk
0:00:05.2]} 32. Bg5 {[%clk 0:00:18.6]} 32... d1=Q {[%clk 0:00:04.9]} 33. Rfxd1
{[%clk 0:00:18.8]} 33... cxd1=Q+ {[%clk 0:00:05.8]} 34. Rxd1 {[%clk 0:00:19]}
34... d4 {[%clk 0:00:06.2]} 35. a4 {[%clk 0:00:16.4]} 35... c4 {[%clk
0:00:06.4]} 36. Bb5 {[%clk 0:00:16]} 36... c3 {[%clk 0:00:06.5]} 37. Bd3 {[%clk
0:00:15.4]} 37... Bb3 {[%clk 0:00:06.1]} 38. Rc1 {[%clk 0:00:15.7]} 38... Ba3
{[%clk 0:00:05.4]} 39. a5 {[%clk 0:00:14.3]} 39... Ra2 {[%clk 0:00:05]} 40. Rb1
{[%clk 0:00:13.9]} 40... Ba4 {[%clk 0:00:04.2]} 41. Bf6 {[%clk 0:00:10.6]} 41...
Kd6 {[%clk 0:00:03.7]} 42. f4 {[%clk 0:00:08.1]} 42... exf4 {[%clk 0:00:04.6]}
43. Bxd4 {[%clk 0:00:05.3]} 43... c2 {[%clk 0:00:05.1]} 44. Bxc2 {[%clk
0:00:05.4]} 44... Bxc2 {[%clk 0:00:06]} 45. Rf1 {[%clk 0:00:04.2]} 45... Bc5
{[%clk 0:00:06]} 46. Bxc5+ {[%clk 0:00:04.5]} 46... Kxc5 {[%clk 0:00:06.9]} 47.
Rxf4 {[%clk 0:00:05]} 47... Rxa5 {[%clk 0:00:07]} 48. Rxf7 {[%clk 0:00:05.4]}
48... Ra2 {[%clk 0:00:06.4]} 49. g4 {[%clk 0:00:04.7]} 49... a5 {[%clk
0:00:06.6]} 50. h4 {[%clk 0:00:05.1]} 50... a4 {[%clk 0:00:07.1]} 51. g5 {[%clk
0:00:05.6]} 51... Be4 {[%clk 0:00:07.3]} 52. Ra7 {[%clk 0:00:04.5]} 52... a3
{[%clk 0:00:07.3]} 53. h5 {[%clk 0:00:04.7]} 53... Kd4 {[%clk 0:00:06.5]} 54. g6
{[%clk 0:00:04.7]} 54... hxg6 {[%clk 0:00:06.5]} 55. hxg6 {[%clk 0:00:05.6]}
55... Bxg6 {[%clk 0:00:06.9]} 0-1

[Event "*** Titled Tuesday Blitz"]
[Site "Chess.com"]
[Date "2020.04.14"]
[Round "1"]
[White "elohunter1999"]
[Black "nubair1198"]
[Result "1-0"]
[WhiteElo "2464"]
[BlackElo "2829"]
[TimeControl "180+1"]
[EndTime "10:08:05 PDT"]
[Termination "elohunter1999 won by checkmate"]

1. e4 {[%clk 0:03:00.9]} 1... g6 {[%clk 0:02:58.3]} 2. d4 {[%clk 0:03:00.3]}
2... Bg7 {[%clk 0:02:59.2]} 3. Nc3 {[%clk 0:03:00.8]} 3... c6 {[%clk 0:02:56.4]}
4. Nf3 {[%clk 0:02:58.7]} 4... d6 {[%clk 0:02:54.5]} 5. Be3 {[%clk 0:02:57.3]}
5... Nf6 {[%clk 0:02:54.4]} 6. h3 {[%clk 0:02:55.2]} 6... O-O {[%clk 0:02:54.1]}
7. Be2 {[%clk 0:02:55.1]} 7... Nbd7 {[%clk 0:02:54.4]} 8. a4 {[%clk 0:02:54.1]}
8... e5 {[%clk 0:02:54.6]} 9. O-O {[%clk 0:02:53.1]} 9... Qe7 {[%clk 0:02:55.1]}
10. dxe5 {[%clk 0:02:45.8]} 10... dxe5 {[%clk 0:02:56]} 11. Nd2 {[%clk
0:02:39.4]} 11... Nc5 {[%clk 0:02:56.1]} 12. a5 {[%clk 0:02:36.8]} 12... Rd8
{[%clk 0:02:55.7]} 13. Qc1 {[%clk 0:02:34.7]} 13... Ne6 {[%clk 0:02:55.9]} 14.
Nc4 {[%clk 0:02:18.1]} 14... Nd4 {[%clk 0:02:56.2]} 15. Bd3 {[%clk 0:02:17.4]}
15... Nh5 {[%clk 0:02:53.5]} 16. Ne2 {[%clk 0:02:07.3]} 16... Be6 {[%clk
0:02:47.3]} 17. Nxd4 {[%clk 0:02:03.5]} 17... exd4 {[%clk 0:02:46.3]} 18. Bd2
{[%clk 0:02:04]} 18... Bxc4 {[%clk 0:02:42.4]} 19. Bxc4 {[%clk 0:02:03.3]} 19...
Qxe4 {[%clk 0:02:43]} 20. Re1 {[%clk 0:02:02.9]} 20... Qf5 {[%clk 0:02:41.1]}
21. Re7 {[%clk 0:02:02.6]} 21... Rf8 {[%clk 0:02:23]} 22. Rxb7 {[%clk
0:02:01.7]} 22... Qc5 {[%clk 0:02:14.1]} 23. Qf1 {[%clk 0:01:52.5]} 23... Qd6
{[%clk 0:02:12.9]} 24. Qd3 {[%clk 0:01:48.1]} 24... Nf4 {[%clk 0:02:11.7]} 25.
Bxf4 {[%clk 0:01:47.5]} 25... Qxf4 {[%clk 0:02:12.6]} 26. Re1 {[%clk 0:01:47.2]}
26... Bf6 {[%clk 0:02:03.6]} 27. Qb3 {[%clk 0:01:41.9]} 27... Bg5 {[%clk
0:01:50.2]} 28. g3 {[%clk 0:01:27.6]} 28... Qf5 {[%clk 0:01:48.7]} 29. h4 {[%clk
0:01:26.4]} 29... Bh6 {[%clk 0:01:47.4]} 30. Ree7 {[%clk 0:01:25.2]} 30... Kh8
{[%clk 0:01:43.4]} 31. Rxf7 {[%clk 0:01:23.5]} 31... Rxf7 {[%clk 0:01:43.8]} 32.
Rxf7 {[%clk 0:01:24.3]} 32... Qc8 {[%clk 0:01:31.8]} 33. Be6 {[%clk 0:01:05.7]}
33... Qb8 {[%clk 0:01:30.3]} 34. Qf3 {[%clk 0:00:53.4]} 34... Bg7 {[%clk
0:01:22.3]} 35. Qxc6 {[%clk 0:00:52.8]} 35... d3 {[%clk 0:01:13.9]} 36. cxd3
{[%clk 0:00:49.7]} 36... Qe8 {[%clk 0:00:59.8]} 37. Qxe8+ {[%clk 0:00:48.4]}
37... Rxe8 {[%clk 0:01:00.7]} 38. Rxa7 {[%clk 0:00:36.2]} 38... Bxb2 {[%clk
0:00:56.8]} 39. Bd5 {[%clk 0:00:32.3]} 39... Bd4 {[%clk 0:00:56.4]} 40. Rf7
{[%clk 0:00:32.2]} 40... Re1+ {[%clk 0:00:54.3]} 41. Kg2 {[%clk 0:00:32]} 41...
Ra1 {[%clk 0:00:55.2]} 42. Rf4 {[%clk 0:00:25.9]} 42... Be5 {[%clk 0:00:47.5]}
43. Rf8+ {[%clk 0:00:25.7]} 43... Kg7 {[%clk 0:00:47.3]} 44. Ra8 {[%clk
0:00:24.8]} 44... Rd1 {[%clk 0:00:40.1]} 45. Be4 {[%clk 0:00:23.4]} 45... Rd2
{[%clk 0:00:35.6]} 46. Ra7+ {[%clk 0:00:20.1]} 46... Kh8 {[%clk 0:00:33.9]} 47.
Rd7 {[%clk 0:00:20.1]} 47... Ra2 {[%clk 0:00:33.3]} 48. Rd5 {[%clk 0:00:20]}
48... Bc3 {[%clk 0:00:33.7]} 49. g4 {[%clk 0:00:20.1]} 49... Bxa5 {[%clk
0:00:32.4]} 50. g5 {[%clk 0:00:19.3]} 50... Be1 {[%clk 0:00:28.8]} 51. Rd8+
{[%clk 0:00:18.1]} 51... Kg7 {[%clk 0:00:29.1]} 52. Bd5 {[%clk 0:00:17]} 52...
Rxf2+ {[%clk 0:00:28.3]} 53. Kg1 {[%clk 0:00:17.2]} 53... Rf8 {[%clk 0:00:28.1]}
54. Rd7+ {[%clk 0:00:17.1]} 54... Kh8 {[%clk 0:00:28.5]} 55. h5 {[%clk
0:00:17.6]} 55... Bd2 {[%clk 0:00:20.1]} 56. hxg6 {[%clk 0:00:17.2]} 56... hxg6
{[%clk 0:00:21]} 57. Rd6 {[%clk 0:00:17.3]} 57... Kg7 {[%clk 0:00:21.1]} 58.
Rd7+ {[%clk 0:00:16.5]} 58... Kh8 {[%clk 0:00:21.5]} 59. Be4 {[%clk 0:00:16.7]}
59... Be3+ {[%clk 0:00:21.6]} 60. Kg2 {[%clk 0:00:15.8]} 60... Bxg5 {[%clk
0:00:20.9]} 61. Bxg6 {[%clk 0:00:16]} 61... Rg8 {[%clk 0:00:21.5]} 62. Rh7#
{[%clk 0:00:15.3]} 1-0

[Event "*** Titled Tuesday Blitz"]
[Site "Chess.com"]
[Date "2020.04.14"]
[Round "1"]
[White "matiss90"]
[Black "ADODOVE"]
[Result "1-0"]
[WhiteElo "2516"]
[BlackElo "1799"]
[TimeControl "180+1"]
[EndTime "10:08:05 PDT"]
[Termination "matiss90 won on time"]

1. e4 {[%clk 0:03:00.6]} 1... d5 {[%clk 0:03:00.9]} 2. exd5 {[%clk 0:03:00.6]}
2... Qxd5 {[%clk 0:02:59.5]} 3. Nc3 {[%clk 0:03:00.5]} 3... Qa5 {[%clk
0:02:58.5]} 4. d4 {[%clk 0:03:00.4]} 4... c6 {[%clk 0:02:58]} 5. Nf3 {[%clk
0:03:00.6]} 5... Bf5 {[%clk 0:02:56.7]} 6. Bc4 {[%clk 0:03:00.1]} 6... e6 {[%clk
0:02:56]} 7. Be3 {[%clk 0:03:00.2]} 7... Nd7 {[%clk 0:02:55.2]} 8. a3 {[%clk
0:02:57.2]} 8... Ngf6 {[%clk 0:02:52.5]} 9. O-O {[%clk 0:02:57]} 9... Bd6 {[%clk
0:02:47.4]} 10. Qe2 {[%clk 0:02:56.6]} 10... O-O {[%clk 0:02:43.1]} 11. h3
{[%clk 0:02:55]} 11... Nd5 {[%clk 0:02:34.9]} 12. Bd2 {[%clk 0:02:46.6]} 12...
Qc7 {[%clk 0:02:27.3]} 13. Ne4 {[%clk 0:02:40.9]} 13... Bf4 {[%clk 0:02:22.3]}
14. Rae1 {[%clk 0:02:18.9]} 14... Rad8 {[%clk 0:02:12.3]} 15. c3 {[%clk
0:02:16.4]} 15... N7f6 {[%clk 0:02:02.6]} 16. Nxf6+ {[%clk 0:02:13]} 16... Nxf6
{[%clk 0:01:59.6]} 17. Bxf4 {[%clk 0:02:08.4]} 17... Qxf4 {[%clk 0:01:58.2]} 18.
Ne5 {[%clk 0:02:04.4]} 18... Nd5 {[%clk 0:01:50.2]} 19. Bxd5 {[%clk 0:01:43.2]}
19... exd5 {[%clk 0:01:37.2]} 20. Qe3 {[%clk 0:01:36.5]} 20... Qxe3 {[%clk
0:01:35.3]} 21. Rxe3 {[%clk 0:01:35.6]} 21... f6 {[%clk 0:01:24.9]} 22. Nd3
{[%clk 0:01:34.6]} 22... Rfe8 {[%clk 0:01:20.3]} 23. Rfe1 {[%clk 0:01:31.5]}
23... Kf7 {[%clk 0:01:14]} 24. Nc5 {[%clk 0:01:26.8]} 24... Bc8 {[%clk
0:01:03.3]} 25. f3 {[%clk 0:01:23.2]} 25... Rxe3 {[%clk 0:01:01.1]} 26. Rxe3
{[%clk 0:01:22.8]} 26... Re8 {[%clk 0:01:01.3]} 27. Kf2 {[%clk 0:01:23]} 27...
Rxe3 {[%clk 0:00:59.1]} 28. Kxe3 {[%clk 0:01:23.9]} 28... b6 {[%clk 0:00:59.1]}
29. Nd3 {[%clk 0:01:22.8]} 29... g5 {[%clk 0:00:51.8]} 30. Nb4 {[%clk
0:01:22.2]} 30... Bd7 {[%clk 0:00:34.4]} 31. f4 {[%clk 0:01:16.6]} 31... h6
{[%clk 0:00:30.7]} 32. fxg5 {[%clk 0:01:16.1]} 32... hxg5 {[%clk 0:00:19.7]} 33.
Nd3 {[%clk 0:01:09.2]} 33... Kg6 {[%clk 0:00:17.8]} 34. g4 {[%clk 0:01:04.8]}
34... a5 {[%clk 0:00:15.4]} 35. a4 {[%clk 0:01:02.2]} 35... Kf7 {[%clk
0:00:13.7]} 36. b4 {[%clk 0:01:02.1]} 36... Ke6 {[%clk 0:00:10.3]} 37. bxa5
{[%clk 0:01:01.9]} 37... bxa5 {[%clk 0:00:09.9]} 38. Nc5+ {[%clk 0:01:02]} 38...
Kd6 {[%clk 0:00:08.8]} 39. Nb7+ {[%clk 0:01:02]} 39... Kc7 {[%clk 0:00:03.9]}
40. Nxa5 {[%clk 0:00:58.3]} 40... c5 {[%clk 0:00:03.5]} 41. dxc5 {[%clk
0:00:51.3]} 41... Bxa4 {[%clk 0:00:02.9]} 42. Kd4 {[%clk 0:00:42.8]} 42... Bc6
{[%clk 0:00:03.1]} 43. Nxc6 {[%clk 0:00:41.3]} 43... Kxc6 {[%clk 0:00:02.4]} 44.
c4 {[%clk 0:00:40.7]} 44... dxc4 {[%clk 0:00:02.3]} 45. Kxc4 {[%clk 0:00:41.6]}
45... Kc7 {[%clk 0:00:02.4]} 46. Kd5 {[%clk 0:00:41.9]} 46... Kd7 {[%clk
0:00:02]} 47. c6+ {[%clk 0:00:42.8]} 47... Kc7 {[%clk 0:00:01.7]} 48. Ke6 {[%clk
0:00:42.7]} 48... Kxc6 {[%clk 0:00:01.8]} 49. Kxf6 {[%clk 0:00:43]} 49... Kd6
{[%clk 0:00:02]} 50. Kxg5 {[%clk 0:00:43.3]} 50... Ke7 {[%clk 0:00:02.2]} 51.
Kg6 {[%clk 0:00:43.6]} 51... Kf8 {[%clk 0:00:02.9]} 52. Kh7 {[%clk 0:00:43.9]}
52... Kf7 {[%clk 0:00:02.5]} 53. g5 {[%clk 0:00:44.8]} 53... Kf8 {[%clk
0:00:01.8]} 54. g6 {[%clk 0:00:45.7]} 54... Ke7 {[%clk 0:00:02.4]} 55. g7 {[%clk
0:00:46.6]} 55... Kf6 {[%clk 0:00:02.6]} 56. g8=Q {[%clk 0:00:47.5]} 56... Ke5
{[%clk 0:00:02.8]} 57. h4 {[%clk 0:00:47.7]} 57... Ke4 {[%clk 0:00:02.8]} 58. h5
{[%clk 0:00:48.1]} 58... Ke5 {[%clk 0:00:02.8]} 59. Kg6 {[%clk 0:00:48.3]} 59...
Ke4 {[%clk 0:00:02.9]} 60. Qf8 {[%clk 0:00:47.7]} 60... Kd4 {[%clk 0:00:03]} 61.
Qe7 {[%clk 0:00:47.3]} 61... Kd5 {[%clk 0:00:02.1]} 62. Kf5 {[%clk 0:00:47.1]}
62... Kc4 {[%clk 0:00:02.1]} 63. Qd6 {[%clk 0:00:47]} 63... Kc3 {[%clk
0:00:01.3]} 64. Qd5 {[%clk 0:00:46.9]} 1-0